[Event "*** Titled Tuesday Blitz"]
[Site "Chess.com"]
[Date "2020.05.26"]
[Round "6"]
[White "HanSchut"]
[Black "MoonlighT89"]
[Result "0-1"]
[WhiteElo "2179"]
[BlackElo "2547"]
[TimeControl "180+1"]
[EndTime "11:08:40 PDT"]
[Termination "MoonlighT89 won by resignation"]

1. e4 {[%clk 0:03:00.9]} 1... c5 {[%clk 0:02:59.8]} 2. Nf3 {[%clk 0:03:01.1]}
2... e6 {[%clk 0:03:00.2]} 3. c4 {[%clk 0:03:01.1]} 3... Nc6 {[%clk 0:02:59.4]}
4. Nc3 {[%clk 0:03:01.5]} 4... d6 {[%clk 0:02:45.7]} 5. d4 {[%clk 0:03:00.9]}
5... cxd4 {[%clk 0:02:42.1]} 6. Nxd4 {[%clk 0:03:01.8]} 6... Nf6 {[%clk
0:02:41.2]} 7. Be3 {[%clk 0:03:00.2]} 7... Be7 {[%clk 0:02:40.5]} 8. Be2 {[%clk
0:03:00.6]} 8... O-O {[%clk 0:02:41.1]} 9. Rc1 {[%clk 0:03:00.6]} 9... Nxd4
{[%clk 0:02:39.4]} 10. Bxd4 {[%clk 0:03:00.7]} 10... Bd7 {[%clk 0:02:39.8]} 11.
O-O {[%clk 0:02:59.7]} 11... Bc6 {[%clk 0:02:40.5]} 12. f3 {[%clk 0:03:00.2]}
12... Nd7 {[%clk 0:02:38.9]} 13. Qd2 {[%clk 0:02:53]} 13... a5 {[%clk
0:02:31.8]} 14. b3 {[%clk 0:02:52.5]} 14... Qb8 {[%clk 0:02:28.9]} 15. Rfd1
{[%clk 0:02:49.9]} 15... Nc5 {[%clk 0:02:23.4]} 16. Bf1 {[%clk 0:02:47]} 16...
Rd8 {[%clk 0:02:21.8]} 17. Qf2 {[%clk 0:02:46.6]} 17... b6 {[%clk 0:02:18.4]}
18. Nb5 {[%clk 0:02:42.8]} 18... Bf8 {[%clk 0:02:13.9]} 19. Qg3 {[%clk
0:02:36.8]} 19... Qb7 {[%clk 0:02:01.2]} 20. h4 {[%clk 0:02:27.2]} 20... Bxb5
{[%clk 0:01:58.6]} 21. cxb5 {[%clk 0:02:26.4]} 21... d5 {[%clk 0:01:59.3]} 22.
e5 {[%clk 0:02:09.9]} 22... Nd7 {[%clk 0:01:56.3]} 23. Kh1 {[%clk 0:01:58.2]}
23... Rac8 {[%clk 0:01:53.8]} 24. Bd3 {[%clk 0:01:31.7]} 24... Rxc1 {[%clk
0:01:48.1]} 25. Rxc1 {[%clk 0:01:32.6]} 25... Rc8 {[%clk 0:01:46.6]} 26. Qe1
{[%clk 0:01:30.3]} 26... Ba3 {[%clk 0:01:41.4]} 27. Rxc8+ {[%clk 0:01:20.1]}
27... Qxc8 {[%clk 0:01:42.3]} 28. Qd2 {[%clk 0:01:07.7]} 28... Qc7 {[%clk
0:01:06.7]} 29. f4 {[%clk 0:00:57.6]} 29... Qc1+ {[%clk 0:00:57.4]} 30. Qxc1
{[%clk 0:00:56.7]} 30... Bxc1 {[%clk 0:00:58.3]} 31. g3 {[%clk 0:00:57.3]} 31...
g6 {[%clk 0:00:55.4]} 32. Kg2 {[%clk 0:00:52.6]} 32... Kf8 {[%clk 0:00:55.2]}
33. Kf3 {[%clk 0:00:52.9]} 33... Ke7 {[%clk 0:00:55.6]} 34. Ke2 {[%clk
0:00:51.3]} 34... Ba3 {[%clk 0:00:56.1]} 35. Kd2 {[%clk 0:00:41]} 35... Bc5
{[%clk 0:00:54.9]} 36. Kc3 {[%clk 0:00:35.1]} 36... Bxd4+ {[%clk 0:00:34.7]} 37.
Kxd4 {[%clk 0:00:34.5]} 37... f6 {[%clk 0:00:35.3]} 38. exf6+ {[%clk 0:00:31.9]}
38... Nxf6 {[%clk 0:00:32]} 39. Ke3 {[%clk 0:00:20.5]} 39... Kd6 {[%clk
0:00:30.5]} 40. Kf3 {[%clk 0:00:19.2]} 40... e5 {[%clk 0:00:29.3]} 41. fxe5+
{[%clk 0:00:16.2]} 41... Kxe5 {[%clk 0:00:30.2]} 42. g4 {[%clk 0:00:16.2]} 42...
Ne8 {[%clk 0:00:27.2]} 43. h5 {[%clk 0:00:13.6]} 43... gxh5 {[%clk 0:00:26.5]}
44. gxh5 {[%clk 0:00:13.9]} 44... h6 {[%clk 0:00:26.6]} 45. Kg4 {[%clk
0:00:12.1]} 45... Nd6 {[%clk 0:00:23.9]} 46. Be2 {[%clk 0:00:11.1]} 46... Ke4
{[%clk 0:00:23.2]} 47. Bf3+ {[%clk 0:00:10.1]} 47... Kd4 {[%clk 0:00:23.5]} 48.
Kf4 {[%clk 0:00:09.1]} 48... Nxb5 {[%clk 0:00:19.9]} 49. Kf5 {[%clk 0:00:08.5]}
49... Nc3 {[%clk 0:00:18.9]} 50. Kg6 {[%clk 0:00:07.7]} 50... Ke3 {[%clk
0:00:19.5]} 51. Bg4 {[%clk 0:00:04.9]} 51... d4 {[%clk 0:00:19.9]} 52. Kxh6
{[%clk 0:00:05.4]} 52... d3 {[%clk 0:00:20.1]} 53. Kg7 {[%clk 0:00:05.5]} 53...
d2 {[%clk 0:00:20.2]} 54. h6 {[%clk 0:00:04.6]} 54... Ne2 {[%clk 0:00:19.9]} 55.
Bxe2 {[%clk 0:00:05.1]} 55... d1=Q {[%clk 0:00:20.1]} 56. h7 {[%clk 0:00:06]}
56... Qd4+ {[%clk 0:00:19.2]} 57. Kg8 {[%clk 0:00:04.8]} 57... Kxe2 {[%clk
0:00:17.3]} 58. h8=Q {[%clk 0:00:05.3]} 58... Qxh8+ {[%clk 0:00:17.8]} 59. Kxh8
{[%clk 0:00:06.2]} 59... Kd2 {[%clk 0:00:18.7]} 60. Kg7 {[%clk 0:00:06.6]} 60...
Kc2 {[%clk 0:00:19.2]} 61. Kf6 {[%clk 0:00:05.5]} 61... Kb2 {[%clk 0:00:19.7]}
62. Ke5 {[%clk 0:00:05.9]} 62... Kxa2 {[%clk 0:00:20.2]} 0-1

[Event "*** Titled Tuesday Blitz"]
[Site "Chess.com"]
[Date "2020.05.26"]
[Round "6"]
[White "Fins0905"]
[Black "StockholmMissile"]
[Result "1/2-1/2"]
[WhiteElo "2643"]
[BlackElo "2416"]
[TimeControl "180+1"]
[EndTime "11:08:42 PDT"]
[Termination "Game drawn - insufficient material"]

1. d4 {[%clk 0:03:00.9]} 1... d5 {[%clk 0:02:58.9]} 2. c4 {[%clk 0:03:00]} 2...
c6 {[%clk 0:02:57.3]} 3. cxd5 {[%clk 0:02:57.4]} 3... cxd5 {[%clk 0:02:56.6]} 4.
Bg5 {[%clk 0:02:57.5]} 4... h6 {[%clk 0:02:54.4]} 5. Bh4 {[%clk 0:02:56.8]} 5...
Qb6 {[%clk 0:02:52.4]} 6. Nc3 {[%clk 0:02:50.6]} 6... e6 {[%clk 0:02:52.2]} 7.
Rb1 {[%clk 0:02:44.2]} 7... Ne7 {[%clk 0:02:48]} 8. e3 {[%clk 0:02:32.9]} 8...
Nf5 {[%clk 0:02:47]} 9. Bg3 {[%clk 0:02:33]} 9... Nxg3 {[%clk 0:02:46.6]} 10.
hxg3 {[%clk 0:02:33.9]} 10... Be7 {[%clk 0:02:45.8]} 11. Bd3 {[%clk 0:02:33.6]}
11... Nc6 {[%clk 0:02:45.4]} 12. a3 {[%clk 0:02:33.5]} 12... Bd7 {[%clk
0:02:43.2]} 13. Nf3 {[%clk 0:02:24]} 13... Rc8 {[%clk 0:02:41.9]} 14. g4 {[%clk
0:02:03.5]} 14... Qd8 {[%clk 0:02:31]} 15. Rh5 {[%clk 0:01:44.6]} 15... g6
{[%clk 0:02:00.5]} 16. Rh1 {[%clk 0:01:29.8]} 16... Bf8 {[%clk 0:01:59.6]} 17.
Ne2 {[%clk 0:01:15.4]} 17... Bg7 {[%clk 0:01:58.6]} 18. Nf4 {[%clk 0:01:14.7]}
18... Na5 {[%clk 0:01:36]} 19. Ne5 {[%clk 0:00:50.7]} 19... Bxe5 {[%clk
0:01:34.3]} 20. dxe5 {[%clk 0:00:50.5]} 20... Qg5 {[%clk 0:01:31.7]} 21. Be2
{[%clk 0:00:40.9]} 21... Qxe5 {[%clk 0:01:27.7]} 22. Bd3 {[%clk 0:00:34.5]}
22... Qf6 {[%clk 0:01:21.1]} 23. Qd2 {[%clk 0:00:26.6]} 23... Nc4 {[%clk
0:01:16.9]} 24. Qb4 {[%clk 0:00:24.6]} 24... b6 {[%clk 0:00:58.7]} 25. Ke2
{[%clk 0:00:08.9]} 25... Ne5 {[%clk 0:00:53.4]} 26. Qd4 {[%clk 0:00:08.1]} 26...
Nxg4 {[%clk 0:00:51]} 27. f3 {[%clk 0:00:06]} 27... Qxd4 {[%clk 0:00:49]} 28.
exd4 {[%clk 0:00:06.9]} 28... Nf6 {[%clk 0:00:49.5]} 29. g4 {[%clk 0:00:07.4]}
29... Ke7 {[%clk 0:00:45.6]} 30. Ke3 {[%clk 0:00:06.6]} 30... Kd6 {[%clk
0:00:39.2]} 31. Rh2 {[%clk 0:00:06.5]} 31... e5 {[%clk 0:00:37.4]} 32. dxe5+
{[%clk 0:00:06.2]} 32... Kxe5 {[%clk 0:00:38.3]} 33. Bxg6 {[%clk 0:00:06.5]}
33... d4+ {[%clk 0:00:35.9]} 34. Kf2 {[%clk 0:00:06.1]} 34... Kxf4 {[%clk
0:00:35.9]} 35. Bxf7 {[%clk 0:00:06.5]} 35... Rc2+ {[%clk 0:00:35]} 36. Kg1
{[%clk 0:00:06.3]} 36... Rhc8 {[%clk 0:00:32.6]} 37. Bg6 {[%clk 0:00:05]} 37...
Rxh2 {[%clk 0:00:28.8]} 38. Kxh2 {[%clk 0:00:05.9]} 38... Nd5 {[%clk 0:00:29.2]}
39. Rd1 {[%clk 0:00:05.3]} 39... Ne3 {[%clk 0:00:22.4]} 40. Rxd4+ {[%clk
0:00:05.2]} 40... Kxf3 {[%clk 0:00:21.8]} 41. Be4+ {[%clk 0:00:02.8]} 41... Kf2
{[%clk 0:00:20.4]} 42. Rxd7 {[%clk 0:00:02.9]} 42... Nxg4+ {[%clk 0:00:19.6]}
43. Kh3 {[%clk 0:00:03.5]} 43... Ne3 {[%clk 0:00:19.3]} 44. Rxa7 {[%clk
0:00:03.4]} 44... Rc4 {[%clk 0:00:14.3]} 45. Re7 {[%clk 0:00:03]} 45... Rc5
{[%clk 0:00:11.8]} 46. Bg6 {[%clk 0:00:02.3]} 46... Rg5 {[%clk 0:00:11.2]} 47.
Rf7+ {[%clk 0:00:02.5]} 47... Ke2 {[%clk 0:00:10.3]} 48. Rf6 {[%clk 0:00:03]}
48... Rc5 {[%clk 0:00:08.1]} 49. Be4 {[%clk 0:00:02.9]} 49... Re5 {[%clk
0:00:07.9]} 50. Bf3+ {[%clk 0:00:02.8]} 50... Kd2 {[%clk 0:00:07.5]} 51. Kg3
{[%clk 0:00:03.2]} 51... b5 {[%clk 0:00:07.4]} 52. Kf4 {[%clk 0:00:03]} 52...
Rc5 {[%clk 0:00:05.3]} 53. Rd6+ {[%clk 0:00:03.2]} 53... Nd5+ {[%clk 0:00:02.5]}
54. Rxd5+ {[%clk 0:00:02.9]} 54... Rxd5 {[%clk 0:00:02]} 55. Bxd5 {[%clk
0:00:03.8]} 55... Kc2 {[%clk 0:00:01.6]} 56. Bc6 {[%clk 0:00:04.1]} 56... Kxb2
{[%clk 0:00:01.5]} 57. Bxb5 {[%clk 0:00:04.2]} 57... Kxa3 {[%clk 0:00:01.8]} 58.
Bf1 {[%clk 0:00:03.7]} 58... h5 {[%clk 0:00:02.1]} 59. Kg5 {[%clk 0:00:03.8]}
59... h4 {[%clk 0:00:03]} 60. Kxh4 {[%clk 0:00:04.3]} 1/2-1/2

[Event "*** Titled Tuesday Blitz"]
[Site "Chess.com"]
[Date "2020.05.26"]
[Round "6"]
[White "MikeSailer"]
[Black "IAgrest"]
[Result "1/2-1/2"]
[WhiteElo "2082"]
[BlackElo "2263"]
[TimeControl "180+1"]
[EndTime "11:08:42 PDT"]
[Termination "Game drawn - insufficient material"]

1. d4 {[%clk 0:03:00.9]} 1... Nf6 {[%clk 0:02:59.6]} 2. Nf3 {[%clk 0:03:00.6]}
2... g6 {[%clk 0:02:59.6]} 3. Bf4 {[%clk 0:03:00.8]} 3... Bg7 {[%clk 0:02:57.6]}
4. e3 {[%clk 0:03:01.6]} 4... O-O {[%clk 0:02:57.1]} 5. Be2 {[%clk 0:03:02.5]}
5... d6 {[%clk 0:02:56.9]} 6. O-O {[%clk 0:03:03]} 6... Nfd7 {[%clk 0:02:57]} 7.
h3 {[%clk 0:03:02.9]} 7... e5 {[%clk 0:02:56.8]} 8. Bh2 {[%clk 0:03:03.5]} 8...
Nc6 {[%clk 0:02:55.5]} 9. c4 {[%clk 0:03:00.7]} 9... exd4 {[%clk 0:02:37.1]} 10.
exd4 {[%clk 0:02:58.8]} 10... Qf6 {[%clk 0:02:34.3]} 11. d5 {[%clk 0:02:34.1]}
11... Nce5 {[%clk 0:02:27.2]} 12. Nfd2 {[%clk 0:02:16.5]} 12... Nc5 {[%clk
0:02:20.9]} 13. Nc3 {[%clk 0:02:03.8]} 13... a5 {[%clk 0:02:15.1]} 14. Nde4
{[%clk 0:01:49.1]} 14... Nxe4 {[%clk 0:02:13.1]} 15. Nxe4 {[%clk 0:01:49.8]}
15... Qh4 {[%clk 0:02:10.3]} 16. f3 {[%clk 0:01:37.7]} 16... f5 {[%clk
0:02:01.8]} 17. Bg3 {[%clk 0:01:27.9]} 17... Qe7 {[%clk 0:01:48.3]} 18. Nf2
{[%clk 0:01:19.7]} 18... f4 {[%clk 0:01:38.5]} 19. Bh2 {[%clk 0:01:18.7]} 19...
g5 {[%clk 0:01:18.7]} 20. Re1 {[%clk 0:01:18.6]} 20... Qf7 {[%clk 0:01:12.7]}
21. Ne4 {[%clk 0:01:12.3]} 21... Qg6 {[%clk 0:01:07.5]} 22. c5 {[%clk
0:01:11.3]} 22... Bf5 {[%clk 0:01:02.8]} 23. cxd6 {[%clk 0:01:07]} 23... cxd6
{[%clk 0:00:57.2]} 24. Nc3 {[%clk 0:00:59.7]} 24... Rac8 {[%clk 0:00:46.1]} 25.
Rc1 {[%clk 0:00:58.7]} 25... Nc4 {[%clk 0:00:40]} 26. Bxc4 {[%clk 0:00:46.6]}
26... Rxc4 {[%clk 0:00:40.9]} 27. Kh1 {[%clk 0:00:37.6]} 27... h6 {[%clk
0:00:39.5]} 28. Bg1 {[%clk 0:00:37.7]} 28... Rfc8 {[%clk 0:00:33.4]} 29. a4
{[%clk 0:00:34.5]} 29... h5 {[%clk 0:00:25]} 30. Re7 {[%clk 0:00:33.9]} 30...
R4c7 {[%clk 0:00:16.2]} 31. Rxc7 {[%clk 0:00:32.2]} 31... Rxc7 {[%clk
0:00:16.9]} 32. Nb5 {[%clk 0:00:30.9]} 32... Rxc1 {[%clk 0:00:15.9]} 33. Qxc1
{[%clk 0:00:31.6]} 33... Kh7 {[%clk 0:00:14.4]} 34. Qc7 {[%clk 0:00:31.3]} 34...
g4 {[%clk 0:00:13.2]} 35. fxg4 {[%clk 0:00:20.3]} 35... hxg4 {[%clk 0:00:13]}
36. Bd4 {[%clk 0:00:16]} 36... gxh3 {[%clk 0:00:12.9]} 37. Qxg7+ {[%clk
0:00:15]} 37... Qxg7 {[%clk 0:00:13.5]} 38. Bxg7 {[%clk 0:00:15.5]} 38... hxg2+
{[%clk 0:00:12.7]} 39. Kxg2 {[%clk 0:00:16.1]} 39... Kxg7 {[%clk 0:00:13]} 40.
Nxd6 {[%clk 0:00:16.7]} 40... Bc2 {[%clk 0:00:11.5]} 41. Nxb7 {[%clk 0:00:15.5]}
41... Be4+ {[%clk 0:00:10.4]} 42. Kf2 {[%clk 0:00:14.7]} 42... Bxd5 {[%clk
0:00:11]} 43. Nxa5 {[%clk 0:00:15.2]} 43... Kf6 {[%clk 0:00:10.3]} 44. b4 {[%clk
0:00:13.9]} 44... Ke5 {[%clk 0:00:10.2]} 45. b5 {[%clk 0:00:14]} 45... Kd6
{[%clk 0:00:10.3]} 46. Ke2 {[%clk 0:00:10.3]} 46... Kc5 {[%clk 0:00:10.2]} 47.
Kd3 {[%clk 0:00:08.7]} 47... Kb4 {[%clk 0:00:06]} 48. Nc6+ {[%clk 0:00:07.3]}
48... Kxa4 {[%clk 0:00:06.1]} 49. Ne7 {[%clk 0:00:06.4]} 49... Bh1 {[%clk
0:00:04.8]} 50. Ng6 {[%clk 0:00:05.4]} 50... f3 {[%clk 0:00:04.2]} 51. b6 {[%clk
0:00:04.2]} 51... f2 {[%clk 0:00:03.9]} 52. Ke2 {[%clk 0:00:04.4]} 52... Kb5
{[%clk 0:00:04]} 53. Kxf2 {[%clk 0:00:04.5]} 53... Kxb6 {[%clk 0:00:04.4]}
1/2-1/2

[Event "*** Titled Tuesday Blitz"]
[Site "Chess.com"]
[Date "2020.05.26"]
[Round "6"]
[White "Gyapiking"]
[Black "okriak"]
[Result "0-1"]
[WhiteElo "2531"]
[BlackElo "2722"]
[TimeControl "180+1"]
[EndTime "11:08:44 PDT"]
[Termination "okriak won by checkmate"]

1. c4 {[%clk 0:03:00.9]} 1... e6 {[%clk 0:02:59.2]} 2. g3 {[%clk 0:03:00.4]}
2... d5 {[%clk 0:02:59.4]} 3. Bg2 {[%clk 0:03:00.5]} 3... Nf6 {[%clk 0:02:59.9]}
4. Nf3 {[%clk 0:03:00.4]} 4... Be7 {[%clk 0:03:00.2]} 5. O-O {[%clk 0:03:00.4]}
5... O-O {[%clk 0:03:00.1]} 6. b3 {[%clk 0:03:00.5]} 6... b6 {[%clk 0:02:59.2]}
7. Bb2 {[%clk 0:03:00.2]} 7... Bb7 {[%clk 0:02:59.2]} 8. e3 {[%clk 0:02:59.7]}
8... c5 {[%clk 0:02:59.2]} 9. Nc3 {[%clk 0:02:57.1]} 9... Nc6 {[%clk 0:02:56.6]}
10. cxd5 {[%clk 0:02:56.8]} 10... Nxd5 {[%clk 0:02:56.3]} 11. Nxd5 {[%clk
0:02:56.7]} 11... Qxd5 {[%clk 0:02:55.9]} 12. d4 {[%clk 0:02:56]} 12... Rfd8
{[%clk 0:02:51.2]} 13. Ne5 {[%clk 0:02:53.6]} 13... Qd6 {[%clk 0:02:47]} 14. Qf3
{[%clk 0:02:53.4]} 14... Nxe5 {[%clk 0:02:38.2]} 15. Qxb7 {[%clk 0:02:53]} 15...
Ng6 {[%clk 0:02:31.4]} 16. Qxa8 {[%clk 0:02:45.6]} 16... Rxa8 {[%clk 0:02:30.8]}
17. Bxa8 {[%clk 0:02:45.4]} 17... Bf6 {[%clk 0:02:26.5]} 18. dxc5 {[%clk
0:02:40.3]} 18... Qb8 {[%clk 0:02:18.5]} 19. Bxf6 {[%clk 0:02:38.6]} 19... Qxa8
{[%clk 0:02:18.4]} 20. Bd4 {[%clk 0:02:20.8]} 20... bxc5 {[%clk 0:02:18]} 21.
Bxc5 {[%clk 0:02:20.8]} 21... Ne5 {[%clk 0:02:18]} 22. Rfd1 {[%clk 0:02:06.2]}
22... Nf3+ {[%clk 0:02:11.9]} 23. Kf1 {[%clk 0:02:05.6]} 23... Nxh2+ {[%clk
0:02:11.4]} 24. Ke2 {[%clk 0:02:03]} 24... h5 {[%clk 0:02:11.2]} 25. Rac1 {[%clk
0:01:45.3]} 25... a5 {[%clk 0:02:01]} 26. Bd4 {[%clk 0:01:33.8]} 26... Qa6+
{[%clk 0:01:47.7]} 27. Kd2 {[%clk 0:01:31.9]} 27... e5 {[%clk 0:01:43.8]} 28.
Bc3 {[%clk 0:01:27.5]} 28... Nf3+ {[%clk 0:01:39.9]} 29. Kc2 {[%clk 0:01:27.4]}
29... Qe2+ {[%clk 0:01:38.1]} 30. Kb1 {[%clk 0:01:27.2]} 30... Qxf2 {[%clk
0:01:38]} 31. Bxa5 {[%clk 0:01:26.1]} 31... Qxg3 {[%clk 0:01:35.5]} 32. Bc3
{[%clk 0:01:24.2]} 32... h4 {[%clk 0:01:34.9]} 33. a4 {[%clk 0:01:24.2]} 33...
h3 {[%clk 0:01:34.7]} 34. a5 {[%clk 0:01:24.2]} 34... h2 {[%clk 0:01:33.2]} 35.
Rh1 {[%clk 0:01:15.2]} 35... Ng1 {[%clk 0:01:25.9]} 36. a6 {[%clk 0:01:14.4]}
36... Qg2 {[%clk 0:01:25.3]} 37. Rxh2 {[%clk 0:01:06.3]} 37... Qxh2 {[%clk
0:01:19.9]} 38. a7 {[%clk 0:01:06.1]} 38... Qg2 {[%clk 0:01:10.7]} 39. Bxe5
{[%clk 0:01:05.1]} 39... Qe4+ {[%clk 0:01:05.3]} 40. Ka2 {[%clk 0:01:03.1]}
40... Qb7 {[%clk 0:01:03.4]} 41. Rxg1 {[%clk 0:00:50.2]} 41... Qxa7+ {[%clk
0:01:02.7]} 42. Kb2 {[%clk 0:00:49.3]} 42... Qxe3 {[%clk 0:00:50.8]} 43. Rxg7+
{[%clk 0:00:47.6]} 43... Kf8 {[%clk 0:00:50.7]} 44. Bc3 {[%clk 0:00:47.4]} 44...
f5 {[%clk 0:00:44.9]} 45. Rd7 {[%clk 0:00:41.2]} 45... f4 {[%clk 0:00:38.2]} 46.
Bd4 {[%clk 0:00:41.3]} 46... Qe2+ {[%clk 0:00:35.7]} 47. Kc3 {[%clk 0:00:41.2]}
47... f3 {[%clk 0:00:32.5]} 48. Rd5 {[%clk 0:00:38.4]} 48... Qe4 {[%clk
0:00:24]} 49. Rc5 {[%clk 0:00:30.6]} 49... Qf4 {[%clk 0:00:20.2]} 50. Bf2 {[%clk
0:00:29]} 50... Ke7 {[%clk 0:00:19.9]} 51. Kb2 {[%clk 0:00:28]} 51... Qd2+
{[%clk 0:00:19.5]} 52. Rc2 {[%clk 0:00:27.6]} 52... Qd3 {[%clk 0:00:19.8]} 53.
b4 {[%clk 0:00:26.6]} 53... Ke6 {[%clk 0:00:19.9]} 54. Kb1 {[%clk 0:00:25]}
54... Qb3+ {[%clk 0:00:18.8]} 55. Rb2 {[%clk 0:00:25.1]} 55... Qd1+ {[%clk
0:00:18.6]} 56. Ka2 {[%clk 0:00:24.8]} 56... Qa4+ {[%clk 0:00:18.6]} 57. Kb1
{[%clk 0:00:24.7]} 57... Qb5 {[%clk 0:00:19.2]} 58. Kc2 {[%clk 0:00:24.7]} 58...
Kd5 {[%clk 0:00:19]} 59. Kb1 {[%clk 0:00:24.9]} 59... Ke4 {[%clk 0:00:18.7]} 60.
Rd2 {[%clk 0:00:24.8]} 60... Qxb4+ {[%clk 0:00:18.3]} 61. Kc2 {[%clk 0:00:24.7]}
61... Qc4+ {[%clk 0:00:17.8]} 62. Kd1 {[%clk 0:00:24.7]} 62... Qf1+ {[%clk
0:00:17.6]} 63. Kc2 {[%clk 0:00:23.9]} 63... Qc4+ {[%clk 0:00:17.7]} 64. Kd1
{[%clk 0:00:24.1]} 64... Qa4+ {[%clk 0:00:17.9]} 65. Kc1 {[%clk 0:00:24]} 65...
Qa1+ {[%clk 0:00:17]} 66. Kc2 {[%clk 0:00:23.8]} 66... Kf5 {[%clk 0:00:16.1]}
67. Kd3 {[%clk 0:00:21.9]} 67... Qb1+ {[%clk 0:00:15.4]} 68. Ke3 {[%clk
0:00:21.9]} 68... Qe4# {[%clk 0:00:15.5]} 0-1

[Event "*** Titled Tuesday Blitz"]
[Site "Chess.com"]
[Date "2020.05.26"]
[Round "6"]
[White "CzechmVIII"]
[Black "kuba2006"]
[Result "0-1"]
[WhiteElo "2171"]
[BlackElo "2405"]
[TimeControl "180+1"]
[EndTime "11:08:45 PDT"]
[Termination "kuba2006 won by checkmate"]

1. e4 {[%clk 0:03:00.9]} 1... Nf6 {[%clk 0:03:00.9]} 2. e5 {[%clk 0:03:00.2]}
2... Nd5 {[%clk 0:03:00.6]} 3. d4 {[%clk 0:03:00.3]} 3... d6 {[%clk 0:03:00.9]}
4. Nf3 {[%clk 0:02:59.8]} 4... Bg4 {[%clk 0:03:00]} 5. Be2 {[%clk 0:02:58.6]}
5... c6 {[%clk 0:03:00]} 6. Ng5 {[%clk 0:02:53.3]} 6... Bf5 {[%clk 0:02:51.9]}
7. g4 {[%clk 0:02:49.1]} 7... Bg6 {[%clk 0:02:50.2]} 8. h4 {[%clk 0:02:44]} 8...
h6 {[%clk 0:02:46.9]} 9. Nh3 {[%clk 0:02:31.7]} 9... dxe5 {[%clk 0:02:44.5]} 10.
dxe5 {[%clk 0:02:26.5]} 10... e6 {[%clk 0:02:44.5]} 11. c4 {[%clk 0:02:03.5]}
11... Nb4 {[%clk 0:02:22.7]} 12. Qxd8+ {[%clk 0:02:02]} 12... Kxd8 {[%clk
0:02:23.6]} 13. Na3 {[%clk 0:02:02]} 13... Nd7 {[%clk 0:02:19]} 14. f4 {[%clk
0:01:53.7]} 14... Be4 {[%clk 0:02:16.2]} 15. Rh2 {[%clk 0:01:43.5]} 15... Nc5
{[%clk 0:01:59.6]} 16. Nf2 {[%clk 0:01:36.2]} 16... Bh7 {[%clk 0:01:57.1]} 17.
Be3 {[%clk 0:01:31.4]} 17... Kc7 {[%clk 0:01:52.8]} 18. Bd2 {[%clk 0:01:15.5]}
18... Nbd3+ {[%clk 0:01:35.8]} 19. Nxd3 {[%clk 0:01:13.9]} 19... Nxd3+ {[%clk
0:01:34.4]} 20. Bxd3 {[%clk 0:01:12.5]} 20... Bxd3 {[%clk 0:01:35.3]} 21. O-O-O
{[%clk 0:01:00.8]} 21... Bxa3 {[%clk 0:01:28.6]} 22. Ba5+ {[%clk 0:00:50.8]}
22... b6 {[%clk 0:01:27.7]} 23. Rxd3 {[%clk 0:00:50.8]} 23... Bxb2+ {[%clk
0:00:58]} 24. Rxb2 {[%clk 0:00:49.8]} 24... bxa5 {[%clk 0:00:58.9]} 25. Ra3
{[%clk 0:00:46]} 25... Rhd8 {[%clk 0:00:56]} 26. Rd2 {[%clk 0:00:43.9]} 26...
Kb6 {[%clk 0:00:32.7]} 27. Rb3+ {[%clk 0:00:43.6]} 27... Kc7 {[%clk 0:00:15.2]}
28. Ra3 {[%clk 0:00:41.7]} 28... Rxd2 {[%clk 0:00:08.6]} 29. Kxd2 {[%clk
0:00:41.9]} 29... Rd8+ {[%clk 0:00:08.8]} 30. Ke3 {[%clk 0:00:42]} 30... Kb6
{[%clk 0:00:09.1]} 31. Rb3+ {[%clk 0:00:31.5]} 31... Ka6 {[%clk 0:00:08.6]} 32.
h5 {[%clk 0:00:31]} 32... a4 {[%clk 0:00:06.7]} 33. Rb4 {[%clk 0:00:31.1]} 33...
c5 {[%clk 0:00:03.2]} 34. Rb5 {[%clk 0:00:27.5]} 34... Rd1 {[%clk 0:00:02.3]}
35. Rxc5 {[%clk 0:00:27]} 35... Ra1 {[%clk 0:00:02.2]} 36. Kd3 {[%clk
0:00:14.8]} 36... Rxa2 {[%clk 0:00:02.4]} 37. Kc3 {[%clk 0:00:15.1]} 37... Rf2
{[%clk 0:00:02.6]} 38. Rc7 {[%clk 0:00:14.5]} 38... Rxf4 {[%clk 0:00:02.3]} 39.
Rd7 {[%clk 0:00:14.9]} 39... Kb6 {[%clk 0:00:02.2]} 40. Rd2 {[%clk 0:00:13.3]}
40... a5 {[%clk 0:00:02]} 41. Ra2 {[%clk 0:00:13.2]} 41... Rxg4 {[%clk
0:00:01.5]} 42. Rxa4 {[%clk 0:00:13.6]} 42... Rh4 {[%clk 0:00:01.8]} 43. Ra2
{[%clk 0:00:13.9]} 43... Rxh5 {[%clk 0:00:01.8]} 44. Rb2+ {[%clk 0:00:14.8]}
44... Kc6 {[%clk 0:00:01.3]} 45. Rd2 {[%clk 0:00:15.7]} 45... Rxe5 {[%clk
0:00:01.1]} 46. Rd8 {[%clk 0:00:15.4]} 46... Rg5 {[%clk 0:00:01.7]} 47. Rc8+
{[%clk 0:00:16]} 47... Kb7 {[%clk 0:00:01.3]} 48. Rf8 {[%clk 0:00:16.9]} 48...
Rg3+ {[%clk 0:00:01.6]} 49. Kd4 {[%clk 0:00:16.4]} 49... f5 {[%clk 0:00:02.5]}
50. Rf7+ {[%clk 0:00:16.3]} 50... Kb6 {[%clk 0:00:02.4]} 51. Re7 {[%clk
0:00:17.2]} 51... Kc6 {[%clk 0:00:02.8]} 52. Rxe6+ {[%clk 0:00:17.4]} 52... Kd7
{[%clk 0:00:03.5]} 53. Ra6 {[%clk 0:00:18]} 53... Rg4+ {[%clk 0:00:03.9]} 54.
Kc5 {[%clk 0:00:17.8]} 54... h5 {[%clk 0:00:03.8]} 55. Ra7+ {[%clk 0:00:18.1]}
55... Ke6 {[%clk 0:00:03.6]} 56. Rxa5 {[%clk 0:00:19]} 56... h4 {[%clk
0:00:03.6]} 57. Ra6+ {[%clk 0:00:18.8]} 57... Ke5 {[%clk 0:00:03.6]} 58. Ra8
{[%clk 0:00:19]} 58... h3 {[%clk 0:00:03.6]} 59. Rh8 {[%clk 0:00:19.1]} 59...
Rg3 {[%clk 0:00:04]} 60. Rh7 {[%clk 0:00:18.5]} 60... f4 {[%clk 0:00:04.2]} 61.
Kb6 {[%clk 0:00:18.8]} 61... f3 {[%clk 0:00:04.7]} 62. Rh8 {[%clk 0:00:17.7]}
62... f2 {[%clk 0:00:05]} 63. Re8+ {[%clk 0:00:18]} 63... Kd6 {[%clk 0:00:04.5]}
64. Rf8 {[%clk 0:00:18.3]} 64... h2 {[%clk 0:00:04.1]} 65. Rxf2 {[%clk
0:00:17.5]} 65... h1=Q {[%clk 0:00:04]} 66. Rd2+ {[%clk 0:00:18.4]} 66... Ke7
{[%clk 0:00:04]} 67. c5 {[%clk 0:00:19.3]} 67... Rb3+ {[%clk 0:00:03.8]} 68. Kc7
{[%clk 0:00:18.9]} 68... Qb7# {[%clk 0:00:04.1]} 0-1